Cogmind - Beta 15 @@@ ROGUE MODE // 2025.06.22 @ 12:32:37 Player: Cynic Result: Destroyed by Y-45 Defender with Beam Rifle Performance ------------- Evolutions (2) 1000 Regions Visited (4) 800 Robots Destroyed (52) 260 Value Destroyed (1494) 1494 Prototype IDs (2) 40 Alien Tech Used (0) 0 Bonus (24) 24 TOTAL SCORE: 3618 Bonus ------- High Alert Combat Kills 24 Cogmind --------- Core Integrity 0/550 Matter 135/300 Energy 80/100 System Corruption 0% Temperature Cool (10) Movement Core (50) Location -8/Materials Parts ------- > --- POWER (2) -------- (None) > --- PROPULSION (2) --- (None) > --- UTILITY (3) ------ Salvage Targeting Computer > --- WEAPON (4) ------- Particle Gun > --- INVENTORY (5) ---- Small Storage Unit Peak State ------------ > --- POWER ------------ Improved Ion Engine > --- PROPULSION ------- Aluminum Leg Aluminum Leg > --- UTILITY ---------- Improved Heat Sink Small Storage Unit Medium Armor Plating > --- WEAPON ----------- Improved EM Shotgun Pulse Rifle Pulse Rifle Pulse Rifle > --- INVENTORY -------- Salvage Targeting Computer Utility Shielding Light Armor Plating Small Laser Small Laser Pulse Rifle EMP Blaster EMP Blaster [Rating: 23] Favorites ----------- Power Improved Ion Engine Engine Improved Ion Engine Power Core Light Nuclear Core Propulsion Aluminum Leg Treads Light Treads Leg Aluminum Leg Wheel Wheel Hover Unit Hover Unit Utility Small Storage Unit Device Improved Heat Sink Storage Small Storage Unit Processor Salvage Targeting Computer Protection Utility Shielding Weapon Pulse Rifle Energy Gun Pulse Rifle Energy Cannon Particle Cannon Ballistic Gun Light Assault Rifle Ballistic Cannon Light Cannon Launcher EMP Blaster Build | -11 -10 -9 -9 -8 ------- Run | Yrd Mat Mat Sto Mat Slots Evolved 4 | . . 2 . 2 Power 1 | . . . . 1 Propulsion . | . . . . . Utility 1 | . . 1 . . Weapon 2 | . . 1 . 1 Parts Attached 45 | 6 2 12 16 9 Power 7 | 1 . 2 3 1 Engine 5 | 1 . 2 2 . Core 2 | . . . 1 1 Reactor . | . . . . . Propulsion 9 | 2 . 3 4 . Treads 3 | . . 1 2 . Leg 2 | . . . 2 . Wheel 2 | 2 . . . . Hover 2 | . . 2 . . Flight . | . . . . . Utility 10 | 1 1 2 3 3 Device 4 | . . 1 2 1 Storage 1 | 1 . . . . Processor 1 | . . . . 1 Hackware . | . . . . . Protection 4 | . 1 1 1 1 Artifact . | . . . . . Weapon 19 | 2 1 5 6 5 Energy Gun 11 | . . 1 5 5 Energy Cannon 1 | . . 1 . . Ballistic Gun 4 | 2 . 1 1 . Ballistic Cannon 1 | . 1 . . . Launcher 2 | . . 2 . . Special Weapon . | . . . . . Impact Weapon . | . . . . . Slashing Weapon . | . . . . . Piercing Weapon . | . . . . . Special Melee Weapon . | . . . . . Unidentified Prototypes 2 | . . . 2 . Parts Lost 25 | . . 7 4 14 Power 4 | . . 1 1 2 Propulsion 5 | . . 3 . 2 Utility 5 | . . 1 . 4 Weapon 11 | . . 2 3 6 Highest Loss Streak 11 | . . 5 2 11 To Critical Strikes . | . . . . . Average Backups 3 | . . 1 6 4 Power . | . . . . . Propulsion . | . . . . . Utility 1 | . . . 3 2 Weapon 1 | . . . 2 2 Tool/Special . | . . . . . Unused Backups 2 | . . . 2 . Power . | . . . . . Propulsion . | . . . . . Utility 2 | . . . 2 . Weapon . | . . . . . Tool/Special . | . . . . . Average Slot Usage (%) 88 | . 95 84 94 80 Engine 7 | . 14 10 5 6 Core 2 | . . . 5 . Treads 5 | . . 2 11 . Leg 5 | . . . 5 16 Wheel 3 | . 28 5 . . Hover 2 | . . 4 2 . Device 7 | . . 5 11 7 Storage 10 | . 14 11 11 6 Protection 11 | . 9 14 11 9 Energy Gun 15 | . . 2 19 31 Energy Cannon 4 | . . 6 5 . Ballistic Gun 6 | . 21 12 3 . Ballistic Cannon 1 | . 6 5 . . Launcher 2 | . . 5 1 . Peak Build Rating 23 | 6 7 14 19 23 Average Rating 13 | 4 6 9 15 18 On Entrance 8 | . 6 7 12 17 Naked Turns . | . . . . . Heaviest Build 32 | 13 16 25 27 32 Greatest Support 46 | 20 20 26 46 20 Greatest Overweight (x) 5 | 1 . 5 1 2 Average Overweight (x) . | . . . . . Largest Inventory Capacity 8 | 8 8 8 8 8 Average Capacity 7 | 6 8 8 8 6 Most Carried 8 | 2 2 5 8 8 Average Carried 3 | . . 1 6 4 Final Capacity 8 | 8 8 8 8 5 Final Carried 7 | . 1 5 7 1 Class Distribution -------------------- 44% | Scavenger-Tank 33% | Tank 15% | Mutant 6% | Scavenger-Mutant Dominant Class ---------------- Mutant | -10/Materials Tank | -9/Materials Scavenger-Tank | -9/Storage Scavenger-Tank | -8/Materials Resources | -11 -10 -9 -9 -8 ----------- Run | Yrd Mat Mat Sto Mat Matter Collected 1066 | 224 110 294 390 48 Remotely . | . . . . . Salvage Created 1876 | . 129 664 1001 82 Parts 136 | . 8 52 70 6 Haulers Intercepted 2 | . 1 . 1 . Recyclers Shooed . | . . . . . Parts Field Recycled . | . . . . . Retrieved Matter . | . . . . . Parts Self-Destructed . | . . . . . Prevented . | . . . . . Kills | -11 -10 -9 -9 -8 ------- Run | Yrd Mat Mat Sto Mat Combat Hostiles Destroyed 43 | . 3 20 18 2 Guns 22 | . 1 5 14 2 Cannons 15 | . 2 10 3 . AOE 6 | . . 5 1 . Classes Destroyed 9 | . 2 5 2 . Worker 2 | . . . 2 . Builder 2 | . . 2 . . Hauler 2 | . 1 . 1 . Recycler 1 | . . 1 . . Watcher 2 | . . 1 1 . Swarmer 11 | . . 11 . . Grunt 18 | . 3 4 10 1 Duelist 1 | . . . 1 . Sentry 13 | . . 5 7 1 Best Kill Streak 9 | . 2 9 6 1 Combat Bots Only 5 | . 2 5 5 1 Max Kills in Single Turn 3 | . 1 3 2 1 Gunslinging 1 | . . . 1 . Exploded 3 | . . 3 1 . Melee . | . . . . . Uniques/NPCs Destroyed . | . . . . . Combat | -11 -10 -9 -9 -8 -------- Run | Yrd Mat Mat Sto Mat Hostile Shots Fired 337 | . 13 128 82 114 Missed 82 | . 2 26 24 30 Hits 255 | . 11 102 58 84 Melee 1 | . . . 1 . Projectile 254 | . 11 102 57 84 Critical Strikes 4 | . . 1 1 2 Damage Taken 3392 | . 123 1061 878 1330 Core 847 | . 21 186 78 562 Absorbed by Shields . | . . . . . Redirected to Shielding 53 | . . 16 24 13 Core Remaining (%) 75 | 100 91 . 34 . Volleys Fired 103 | . 11 47 35 10 Largest 4 | . 2 3 3 4 Hottest 252 | . 50 134 189 252 Shots Fired 274 | . 22 128 95 29 Gun 193 | . 11 73 81 28 Cannon 70 | . 11 48 11 . Launcher 11 | . . 7 3 1 Special . | . . . . . Kinetic 121 | . 22 82 17 . Thermal 121 | . . 39 54 28 Explosive . | . . . . . Electromagnetic 32 | . . 7 24 1 Robot Hit Streak 16 | . 4 11 16 4 Robot Miss Streak 7 | . 3 7 4 2 Penetration Max . | . . . . . Secondary Targets 4 | . . . 4 . Max Gunslinging Chain 1 | . . . 1 . Shots Hit Robots 159 | . 14 63 64 18 Core Hits 84 | . 7 31 40 6 Critical Kills 1 | . . 1 . . Critical Parts Destroyed . | . . . . . Critical Strikes 5 | . . 1 2 2 Burn 4 | . . . 2 2 Destroy 1 | . . 1 . . Melee Attacks . | . . . . . Impact . | . . . . . Slashing . | . . . . . Piercing . | . . . . . Sneak Attacks . | . . . . . Combat Hostiles . | . . . . . Follow-up Attacks . | . . . . . Damage Inflicted 2896 | . 249 1126 1114 407 Guns 1670 | . 90 388 896 296 Cannons 791 | . 159 529 103 . Explosions 435 | . . 209 115 111 Melee . | . . . . . Ramming . | . . . . . Kinetic 905 | . 249 537 119 . Thermal 1384 | . . 444 644 296 Explosive . | . . . . . Electromagnetic 607 | . . 145 351 111 Impact . | . . . . . Slashing . | . . . . . Piercing . | . . . . . Highest Corruption 1 | . . . 1 . Average Corruption 1 | . . . 1 . Corruption Purged . | . . . . . Corruption Blocked . | . . . . . Effects 9 | . . . 9 . Message Errors 3 | . . . 3 . Matter Fused 2 | . . . 2 . Heat Flow Errors 2 | . . . 2 . Data Loss (minor) 1 | . . . 1 . Weapon Failures 1 | . . . 1 . Overload Shots . | . . . . . Overflow Damage 9 | . . 9 . . Projectiles 8 | . . 8 . . Explosions 1 | . . 1 . . Melee . | . . . . . Knockbacks . | . . . . . Impact . | . . . . . Kinetic . | . . . . . Secondary . | . . . . . Self-Inflicted Damage 63 | . . 25 38 . Shots 5 | . . 2 3 . Rammed . | . . . . . Targets Rammed . | . . . . . Kicked . | . . . . . Crushed . | . . . . . Highest Temperature 595 | . 8 312 360 595 Average Temperature 122 | . 3 84 108 286 Received Heat Transfer 1182 | . 66 186 300 630 Effects 19 | . . 2 1 16 Shutdowns 2 | . . . . 2 Energy Bleed 3 | . . 1 1 1 Interference 1 | . . 1 . . Matter Decay 2 | . . . . 2 Short Circuit 2 | . . . . 2 Damage (minor) 2 | . . . . 2 Damage (major) 6 | . . . . 6 Damage (core) 1 | . . . . 1 Siege Activations . | . . . . . Martial Activations . | . . . . . Shielding Activations . | . . . . . Robots Disrupted . | . . . . . Combat Hostiles . | . . . . . Robots Corrupted . | . . . . . Combat Hostiles . | . . . . . Parts Fried 1 | . . . 1 . Impact Corruptions . | . . . . . Robots Melted . | . . . . . Combat Hostiles . | . . . . . Parts Melted 1 | . . . 1 . Heat Transferred 3264 | . . 880 1570 814 Parts Sabotaged . | . . . . . Parts Stolen . | . . . . . Parts Stripped . | . . . . . Power Chain Reactions 2 | . . 1 1 . Alert | -11 -10 -9 -9 -8 ------- Run | Yrd Mat Mat Sto Mat Maximum Alert Level 2 | . . 1 2 . Low Security (%) 57 | 100 100 61 22 100 Level 1 39 | . . 38 69 . Level 2 3 | . . . 8 . Level 3 . | . . . . . Level 4 . | . . . . . Level 5 . | . . . . . High Security . | . . . . . Max Security . | . . . . . Peak Influence 415 | . 67 348 415 171 Initial 171 | . . 20 146 171 Average 177 | . 24 154 260 126 Influence Increases 1416 | . 79 602 595 140 Destroy 0b10 Robot/C 860 | . 60 400 360 40 Destroy 0b10 Robot/NC 45 | . 5 20 20 . Destroy Leader 228 | . 12 102 104 10 Successful Hack 4 | . 2 . 2 . Disable Machine 90 | . . 30 45 15 Destroy Structure 9 | . . 5 4 . Lose Combat Pursuer 180 | . . 45 60 75 Influence Decreases 1405 | . 30 303 536 536 Entered New Map 467 | . . 29 202 236 Time Decay 698 | . 30 214 294 160 Lost Part 240 | . . 60 40 140 Squads Dispatched 6 | . 1 2 2 1 Investigation 3 | . . 1 1 1 Extermination . | . . . . . Reinforcement 3 | . 1 1 1 . Assault . | . . . . . Garrison . | . . . . . Intercept . | . . . . . Searches Triggered . | . . . . . Construction Impeded 2 | . . 1 1 . Haulers Reinforced . | . . . . . Active Scanning Responses . | . . . . . Cargo Convoy Interrupts . | . . . . . Stealth | -11 -10 -9 -9 -8 --------- Run | Yrd Mat Mat Sto Mat Distress Signals 3 | . . 1 1 1 Communications Jammed . | . . . . . Distress Signals . | . . . . . Times Spotted 61 | . 4 25 21 11 Peak Tracking Total 7 | . 2 5 6 7 Tactical Retreats 7 | . . 2 2 3 Traps | -11 -10 -9 -9 -8 ------- Run | Yrd Mat Mat Sto Mat Traps Triggered 5 | . . 1 3 1 Indirectly . | . . . . . Trap Hack Attempts . | . . . . . Triggered . | . . . . . Disarmed . | . . . . . Reprogrammed . | . . . . . Reused . | . . . . . Traps Extracted . | . . . . . Installed . | . . . . . Triggered . | . . . . . Machines | -11 -10 -9 -9 -8 ---------- Run | Yrd Mat Mat Sto Mat Machines Disabled 6 | . . 2 3 1 Max in Single Turn 1 | . . 1 1 1 Machines Repaired . | . . . . . Machines Dismantled . | . . . . . Machines Sabotaged . | . . . . . Overloaded Fab Kills . | . . . . . Hacking | -11 -10 -9 -9 -8 --------- Run | Yrd Mat Mat Sto Mat Machines Accessed 4 | . 2 1 1 . Terminals 3 | . 2 . 1 . Fabricators . | . . . . . Repair Stations 1 | . . 1 . . Recycling Units . | . . . . . Scanalyzers . | . . . . . Garrison Access . | . . . . . Total Hacks 6 | . 2 1 3 . Successful 4 | . 2 . 2 . Failed 1 | . . 1 . . Catastrophic . | . . . . . Database Lockouts 1 | . . . 1 . Manual 1 | . . 1 . . Terminals 5 | . 2 . 3 . Fabricators . | . . . . . Repair Stations 1 | . . 1 . . Recycling Units . | . . . . . Scanalyzers . | . . . . . Garrison Access . | . . . . . Terminal Hacks 4 | . 2 . 2 . Record 3 | . 1 . 2 . Locate Traps 1 | . 1 . . . Fabricator Hacks . | . . . . . Repair Station Hacks . | . . . . . Recycling Unit Hacks . | . . . . . Scanalyzer . | . . . . . Garrison Access Hacks . | . . . . . Unauthorized Hacks . | . . . . . Terminals . | . . . . . Fabricators . | . . . . . Repair Stations . | . . . . . Recycling Units . | . . . . . Scanalyzers . | . . . . . Garrison Access . | . . . . . Data Cores Recovered . | . . . . . Used . | . . . . . Hacking Detections 1 | . . . 1 . Full Trace Events 1 | . . . 1 . Feedback Events . | . . . . . Feedback Blocked . | . . . . . Robot Schematics Acquired . | . . . . . Robots Built . | . . . . . Authchips . | . . . . . Time . | . . . . . Total Robot Build Rating . | . . . . . Part Schematics Acquired . | . . . . . Parts Built . | . . . . . Authchips . | . . . . . Time . | . . . . . Total Part Build Rating . | . . . . . Parts Repaired . | . . . . . Time . | . . . . . Parts Recycled . | . . . . . Recycled Matter . | . . . . . Retrieved Matter . | . . . . . Retrieved Components . | . . . . . Parts Scanalyzed . | . . . . . Part Schematics Acquired . | . . . . . Parts Damaged . | . . . . . Bothacking | -11 -10 -9 -9 -8 ------------ Run | Yrd Mat Mat Sto Mat Used RIF Installer . | . . . . . Robots Hacked . | . . . . . Non-combat . | . . . . . Combat . | . . . . . Robot Hacks Applied . | . . . . . Relay Couplers Released . | . . . . . Fabnet Peak Effective % . | . . . . . Robots Rewired . | . . . . . Allies Hacked . | . . . . . Hacks Repelled . | . . . . . Allies | -11 -10 -9 -9 -8 -------- Run | Yrd Mat Mat Sto Mat Total Allies . | . . . . . Largest Group . | . . . . . Highest-Rated Group . | . . . . . Highest-Rated Ally . | . . . . . Total Orders . | . . . . . Ally Attacks . | . . . . . Total Damage . | . . . . . Kills . | . . . . . Allies Corrupted . | . . . . . Allies Melted . | . . . . . Intel | -11 -10 -9 -9 -8 ------- Run | Yrd Mat Mat Sto Mat Active Infowar (turns) . | . . . . . Robot Analysis Total . | . . . . . Derelict Logs Recovered . | . . . . . Drone Launches . | . . . . . Drone Recoveries . | . . . . . Exploration | -11 -10 -9 -9 -8 ------------- Run | Yrd Mat Mat Sto Mat Turns Passed 1606 | 46 122 456 656 326 Spaces Moved 887 | 42 106 250 321 168 Core 35 | 7 . 9 . 19 Treads 201 | . . 24 177 . Legs 211 | . . . 62 149 Wheels 269 | 35 106 128 . . Hover 171 | . . 89 82 . Flight . | . . . . . Fastest Speed 50 | 50 80 80 120 50 Average Speed 131 | 80 80 113 154 159 Slowest Speed 300 | 100 80 300 190 190 Overloaded Moves . | . . . . . Propulsion Burnouts . | . . . . . Robots Hopped . | . . . . . Potential Cave-ins . | . . . . . Cave-ins Triggered . | . . . . . Exploration Rate (%) 24 | 3 25 28 49 16 Regions Visited 4 Branch Regions 1 Pre-discovered Areas . | . . . . . Known Exits Taken . | . . . . . Unknown Exits Taken 4 | 1 1 1 1 . Scrap Searched . | . . . . . Spaces Dug . | . . . . . Terrain Destroyed 5 | . . 3 2 . Melee . | . . . . . Projectile . | . . . . . AOE 5 | . . 3 2 . Terrain Rammed . | . . . . . Walls Destroyed . | . . . . . Machines Disabled . | . . . . . Actions | -11 -10 -9 -9 -8 --------- Run | Yrd Mat Mat Sto Mat Total 1119 | 53 120 332 407 207 Wait 10 | . . . 4 6 Move 883 | 41 105 249 320 168 Hop . | . . . . . Pick Up 42 | 6 2 16 14 4 Fast Attach 7 | . . . 6 1 Attach 29 | 6 1 11 5 6 Detach 3 | . . 2 1 . Swap 20 | . 1 3 10 6 Drop 22 | . . 4 12 6 Fire 103 | . 11 47 35 10 Melee . | . . . . . Ram . | . . . . . Kick . | . . . . . Crush . | . . . . . Escape Stasis . | . . . . . Rewire . | . . . . . Trap . | . . . . . Miscellaneous . | . . . . . Route ------- -11/Scrapyard -10/Materials (discovered 2 exits: *Mat / [*Min]) -9/Materials (discovered 2 exits: [*Min] / *Sto) -9/Storage -8/Materials History --------- Turn | Location | Event 2 | -11/Scrapyard | Met Revision 17 14 | -11/Scrapyard | Discovered new exit (range 15) 47 | -11/Scrapyard | Entered Materials 82 | -10/Materials | Discovered new exit (range 3) 125 | -10/Materials | Discovered new exit (range 7) 169 | -10/Materials | Entered another Materials area 169 | -9/Materials | Evolved 2 slots: Utility x1, Weapon x1 428 | -9/Materials | Lost 5 parts (1p1n1u2w) 514 | -9/Materials | Discovered new exit (range 12) 553 | -9/Materials | Discovered new exit (range 9) 625 | -9/Materials | Entered Storage 664 | -9/Storage | Central database locked down 673 | -9/Storage | Build established: Tank 696 | -9/Storage | Core integrity fell below 50% 1183 | -9/Storage | Discovered new exit (range 9) 1281 | -9/Storage | Entered Materials 1281 | -8/Materials | Evolved 2 slots: Power x1, Weapon x1 1445 | -8/Materials | Build established: Scavenger-Tank 1554 | -8/Materials | Lost 3 parts (1p1u1w) 1587 | -8/Materials | Core integrity fell below 50% 1595 | -8/Materials | Core integrity fell below 20% 1607 | -8/Materials | Destroyed by Y-45 Defender with Beam Rifle Last Messages --------------- Critical hit (Burn: +37). Broken Pulse Rifle destroyed. Aluminum Leg destroyed. Pulse Rifle destroyed. Slug penetrates Wall. G-47 Trooper suffers critical hit (Burn). EMP Blaster destroyed. Utility Shielding destroyed. Heat Sink destroyed. G-47 Trooper destroyed. Penetrated by Slug. Acquired Lgt. Nuclear Core. Y-45 Defender IFF system glitched. Penetrated by Slug. G-47 Trooper destroyed. Penetrated by Slug. Lgt. Armor Plating destroyed. Lgt. Nuclear Core destroyed. Acquired Particle Gun. G-47 Trooper destroyed. Map ----- +----------------------------------------------------+ | | | | | | | | | | | | | | | | | | | | | | | | | | | | | | | | | | | | | | | ?????????????????????????????????????????????????? | | ?????????????????????????????????????????????????? | | ????????????????????????########?????????????????? | | ??????##???????######???# #?????????????????? | | ??????# ##### #####! #?????????????????? | | ???? " hY% #?????????????????? | | ????? [%@ #?????????????????? | | ????????????#### ##### #?????????????????? | | ????????######?## ##???# #?????????????????? | | ????????? # #????########?????????????????? | | ??????????? + ###################### #????? | | ????????????????# =%* *%= ?????? | | ????????????????# !|! #????????????? | | ????????????????# ##/############# #????????????? | | ????????????????# # = ## #????????????? | | ????????????????# # [[ ## #????????????? | | ????????????????# # """" " ## #????????????? | | ????????????????# # """"" S"" ## #????????????? | | ????????????????# # """"" "" ## #????????????? | | ????????????????# # ## #????????????? | | ????????????????# #####+########## #????????????? | | ????????????????# #?# #???# #????????????? | | ????????????????# #?# #???# #????????????? | | ????????????????# #?# #???# #????????????? | | ????????????????# #?# #???# #????????????? | | ????????????????# #?# #???# #????????????? | | ????????????????# #?# #???# #????????????? | | ????????????????# #?# #???# #????????????? | | ????????????????# #?# #???# #????????????? | | ????????????????# #?# #???# #????????????? | | ????????????????# #?#####+####??## ####?????????? | +----------------------------------------------------+ Best States ------------- Heat Dissipation 45 Energy Generation 14 Energy Capacity 265 Matter Stores 300 Matter Capacity 300 Sight Range 16 Terrain Scan Density 10 Additional Mass Support 6 Armor Coverage 225 Utility Shielding 33 Evasion (%) 55 Recoil Reduction 2 Salvage Targeting 1 Item Schematics ----------------- None Robot Schematics ------------------ None Fabricated ------------ Nothing Repaired ---------- Nothing Alien Tech Used ----------------- None Achievements -------------- Let's See Who's Tougher Loot Pinata One Hack Too Far Challenges ------------ None Game ------ Seed PlasmaAntigravFirepult Manual? 0 Play Time 00:31:54 Cumulative 1.7 hours Start 2025.06.22 @ 11:59:25 End 2025.06.22 @ 12:32:37 Sessions 1 Manual Loads 0 Difficulty Rogue Special Mode None Game No. 2 Rogue 2 Adventurer 0 Explorer 0 Win Type - Total 0 Types 0/0/0/0/0/0/0/0/0/0 Lore% 1 Gallery% 4 Achievement% 5 Wizard Run 0 Options --------- Layout 1 ASCII 0 Keyboard 0 Movement Mouse Keybinds 0 Fullscreen 1 Font 48/Smallcaps Map View 50x35 Zoom Use 0% Tactical HUD 0 Map Filters NONE Filters NONE Steam 1 RUN: 8a97aa41-2b71-4fd5-9b99-b9b732f02cba